[Event "New Zealand Rapid Championship"]
[Site "Wellington"]
[Date "2023.01.11"]
[Round "4.4"]
[White "Langford, Joshua"]
[Black "Winsley, Nicholas"]
[Result "0-1"]
[TimeControl "25+5"]
[WhiteFideId "4314557"]
[BlackFideId "4315146"]
[WhiteElo "1843"]
[BlackElo "1854"]

1. e4 {[%clk 00:25:09]} {[%emt 00:03:59]} c6 {[%clk 00:25:03]} {[%emt
00:00:08]} 2. d4 {[%clk 00:25:08]} {[%emt 00:00:06]} d5 {[%clk 00:25:07]} 3. e5
{[%clk 00:25:07]} {[%emt 00:00:06]} Bf5 {[%clk 00:25:08]} {[%emt 00:00:03]} 4.
h4 {[%clk 00:25:11]} h5 {[%clk 00:24:56]} {[%emt 00:00:18]} 5. Bd3 {[%clk
00:25:15]} {[%emt 00:00:01]} Bxd3 {[%clk 00:24:46]} {[%emt 00:00:15]} 6. Qxd3
{[%clk 00:25:19]} {[%emt 00:00:01]} e6 {[%clk 00:24:47]} {[%emt 00:00:04]} 7.
Bg5 {[%clk 00:25:19]} {[%emt 00:00:05]} Be7 {[%clk 00:24:43]} {[%emt 00:00:10]}
8. Nf3 {[%clk 00:25:01]} {[%emt 00:00:24]} Nd7 {[%clk 00:24:11]} {[%emt
00:00:36]} 9. Nbd2 {[%clk 00:24:09]} {[%emt 00:00:56]} Bxg5 {[%clk 00:24:05]}
{[%emt 00:00:12]} 10. hxg5 {[%clk 00:24:10]} {[%emt 00:00:04]} Ne7 {[%clk
00:23:59]} {[%emt 00:00:11]} 11. O-O-O {[%clk 00:22:14]} {[%emt 00:02:01]} Qa5
{[%clk 00:20:59]} {[%emt 00:03:06]} 12. Kb1 {[%clk 00:22:11]} {[%emt 00:00:07]}
O-O-O {[%clk 00:20:53]} {[%emt 00:00:11]} 13. Rh2 {[%clk 00:21:23]} {[%emt
00:00:53]} g6 {[%clk 00:19:39]} {[%emt 00:01:20]} 14. Rdh1 {[%clk 00:21:09]}
{[%emt 00:00:18]} Rhf8 {[%clk 00:19:33]} {[%emt 00:00:11]} 15. Ne1 {[%clk
00:18:47]} {[%emt 00:02:27]} Qb6 {[%clk 00:18:58]} {[%emt 00:00:40]} 16. c3
{[%clk 00:18:41]} {[%emt 00:00:11]} Kb8 {[%clk 00:18:54]} {[%emt 00:00:12]} 17.
Nc2 {[%clk 00:18:41]} {[%emt 00:00:01]} c5 {[%clk 00:18:46]} {[%emt 00:00:13]}
18. Ne3 {[%clk 00:18:03]} {[%emt 00:00:43]} Rc8 {[%clk 00:18:08]} {[%emt
00:00:42]} 19. g4 {[%clk 00:17:36]} {[%emt 00:00:32]} hxg4 {[%clk 00:18:08]}
{[%emt 00:00:05]} 20. Nxg4 {[%clk 00:17:36]} {[%emt 00:00:05]} Nf5 {[%clk
00:17:40]} {[%emt 00:00:32]} 21. Nf3 {[%clk 00:16:25]} {[%emt 00:01:16]} cxd4
{[%clk 00:17:11]} {[%emt 00:00:34]} 22. cxd4 {[%clk 00:15:24]} {[%emt
00:01:07]} Rc4 {[%clk 00:17:04]} {[%emt 00:00:12]} 23. Rd1 {[%emt 00:04:42]}
Rfc8 {[%clk 00:13:47]} 24. Ne3 {[%clk 00:11:34]} {[%emt 00:02:41]} Nxe3 {[%clk
00:10:31]} {[%emt 00:03:20]} 25. fxe3 {[%clk 00:11:37]} {[%emt 00:00:01]} Qb5
{[%clk 00:10:25]} {[%emt 00:00:13]} 26. Qd2 {[%clk 00:10:32]} {[%emt 00:01:11]}
Nb6 {[%clk 00:10:16]} {[%emt 00:00:12]} 27. Ne1 {[%clk 00:09:32]} {[%emt
00:01:04]} R4c6 {[%clk 00:06:27]} {[%emt 00:03:55]} 28. Nd3 {[%clk 00:08:08]}
{[%emt 00:01:29]} Nc4 {[%clk 00:05:51]} {[%emt 00:00:40]} 29. Qb4 {[%clk
00:06:52]} {[%emt 00:01:21]} Qxb4 {[%clk 00:05:08]} {[%emt 00:00:47]} 30. Nxb4
{[%clk 00:06:56]} {[%emt 00:00:02]} Rb6 {[%clk 00:05:12]} 31. Nd3 {[%clk
00:06:24]} {[%emt 00:00:37]} Na3+ {[%clk 00:04:51]} {[%emt 00:00:26]} 32. Ka1
{[%clk 00:06:27]} {[%emt 00:00:02]} Nc2+ {[%clk 00:04:54]} {[%emt 00:00:02]} 33.
Kb1 {[%clk 00:06:31]} {[%emt 00:00:01]} Nxe3 {[%clk 00:04:56]} {[%emt
00:00:03]} 34. Re1 {[%clk 00:05:47]} {[%emt 00:00:56]} Nf5 {[%clk 00:04:57]} 35.
Nc5 {[%clk 00:05:46]} {[%emt 00:00:04]} Rb4 {[%clk 00:03:42]} {[%emt 00:01:19]}
36. Rc1 {[%clk 00:05:03]} {[%emt 00:00:48]} Rc4 {[%clk 00:03:26]} {[%emt
00:00:21]} 37. Rxc4 {[%clk 00:03:52]} {[%emt 00:01:20]} dxc4 {[%clk 00:03:29]}
38. Rh7 {[%clk 00:02:46]} {[%emt 00:01:12]} Nxd4 {[%clk 00:03:28]} {[%emt
00:00:03]} 39. Nd7+ {[%clk 00:02:50]} {[%emt 00:00:01]} Kc7 {[%clk 00:03:00]}
{[%emt 00:00:33]} 40. Rxf7 {[%clk 00:02:53]} {[%emt 00:00:01]} Kc6 {[%clk
00:02:25]} {[%emt 00:00:41]} 41. Nf8 {[%clk 00:02:45]} {[%emt 00:00:13]} Kd5
{[%clk 00:01:47]} {[%emt 00:00:42]} 42. Nxg6 {[%clk 00:02:41]} {[%emt
00:00:09]} Nc6 {[%clk 00:01:01]} {[%emt 00:00:52]} 43. Rxb7 {[%clk 00:02:31]}
{[%emt 00:00:15]} Rg8 {[%clk 00:00:48]} {[%emt 00:00:15]} 44. Rd7+ {[%clk
00:01:04]} {[%emt 00:01:32]} Ke4 {[%clk 00:00:24]} {[%emt 00:00:28]} 45. Ne7
{[%clk 00:00:38]} {[%emt 00:00:32]} Rg7 {[%clk 00:00:14]} {[%emt 00:00:15]} 46.
Nxc6 {[%clk 00:00:08]} {[%emt 00:00:35]} Rxd7 {[%clk 00:00:17]} {[%emt
00:00:02]} 47. Kc2 {[%clk 00:00:09]} {[%emt 00:00:04]} Rc7 {[%clk 00:00:13]}
{[%emt 00:00:10]} 48. Nb4 {[%clk 00:00:07]} {[%emt 00:00:06]} Kxe5 {[%clk
00:00:15]} {[%emt 00:00:02]} 49. Kc3 {[%clk 00:00:08]} {[%emt 00:00:05]} Kf5
{[%clk 00:00:17]} {[%emt 00:00:05]} 50. Na6 {[%clk 00:00:11]} Rc8 {[%clk
00:00:12]} {[%emt 00:00:10]} 51. Kb4 {[%clk 00:00:07]} {[%emt 00:00:09]} Kxg5
{[%clk 00:00:12]} {[%emt 00:00:05]} 52. Nc5 {[%clk 00:00:11]} {[%emt 00:00:01]}
a5+ {[%clk 00:00:08]} {[%emt 00:00:08]} 53. Kxc4 {[%clk 00:00:14]} {[%emt
00:00:03]} Kf5 {[%clk 00:00:10]} {[%emt 00:00:03]} 54. Kb5 {[%clk 00:00:06]}
{[%emt 00:00:13]} e5 {[%clk 00:00:11]} {[%emt 00:00:04]} 55. Nb3 {[%clk
00:00:06]} {[%emt 00:00:05]} a4 {[%clk 00:00:09]} {[%emt 00:00:07]} 56. Nc5
{[%emt 00:00:07]} Rb8+ {[%clk 00:00:08]} {[%emt 00:00:04]} 57. Kxa4 {[%emt
00:00:07]} 0-1

[Event "New Zealand Rapid Championship"]
[Site "Wellington"]
[Date "2023.01.11"]
[Round "4.5"]
[White "Shoker, Samy"]
[Black "Dive, Russell J"]
[Result "1-0"]
[TimeControl "25+5"]
[WhiteTitle "GM"]
[BlackTitle "IM"]
[WhiteFideId "627143"]
[BlackFideId "4300106"]
[WhiteElo "2440"]
[BlackElo "2367"]

1. Nf3 {[%clk 00:25:08]} {[%emt 00:00:02]} d5 {[%clk 00:25:09]} 2. g3 {[%clk
00:25:12]} {[%emt 00:00:02]} c6 {[%clk 00:25:09]} {[%emt 00:00:05]} 3. Bg2
{[%clk 00:25:15]} Nf6 {[%clk 00:25:02]} {[%emt 00:00:13]} 4. O-O {[%clk
00:25:17]} {[%emt 00:00:02]} e6 {[%clk 00:24:59]} {[%emt 00:00:08]} 5. d3
{[%clk 00:25:21]} {[%emt 00:00:02]} Be7 {[%clk 00:24:59]} {[%emt 00:00:05]} 6.
Nbd2 {[%clk 00:25:24]} {[%emt 00:00:02]} O-O {[%clk 00:24:55]} {[%emt
00:00:10]} 7. e4 {[%clk 00:25:28]} dxe4 {[%clk 00:24:42]} {[%emt 00:00:18]} 8.
dxe4 {[%clk 00:25:31]} a5 {[%clk 00:24:40]} {[%emt 00:00:08]} 9. e5 {[%clk
00:25:26]} {[%emt 00:00:10]} Nd5 {[%clk 00:24:31]} {[%emt 00:00:13]} 10. Qe2
{[%clk 00:25:26]} {[%emt 00:00:05]} b6 {[%clk 00:24:03]} {[%emt 00:00:39]} 11.
Rd1 {[%clk 00:25:21]} {[%emt 00:00:05]} Ba6 {[%clk 00:24:04]} {[%emt 00:00:04]}
12. c4 {[%clk 00:25:24]} {[%emt 00:00:03]} Nb4 {[%clk 00:23:41]} {[%emt
00:00:28]} 13. Ne1 {[%clk 00:23:32]} {[%emt 00:01:56]} b5 {[%clk 00:20:20]}
{[%emt 00:03:26]} 14. Ne4 {[%clk 00:20:41]} {[%emt 00:02:56]} Qc7 {[%clk
00:20:24]} {[%emt 00:00:01]} 15. a3 {[%clk 00:20:02]} {[%emt 00:00:45]} bxc4
{[%clk 00:19:31]} {[%emt 00:00:58]} 16. axb4 {[%clk 00:20:02]} {[%emt
00:00:05]} axb4 {[%clk 00:19:34]} {[%emt 00:00:02]} 17. Bf4 {[%clk 00:19:34]}
{[%emt 00:00:32]} Nd7 {[%clk 00:19:03]} {[%emt 00:00:36]} 18. Nf6+ {[%clk
00:19:17]} {[%emt 00:00:22]} Bxf6 {[%clk 00:18:25]} {[%emt 00:00:43]} 19. exf6
{[%clk 00:19:17]} {[%emt 00:00:05]} e5 {[%clk 00:18:22]} {[%emt 00:00:07]} 20.
fxg7 {[%clk 00:18:07]} {[%emt 00:01:15]} Rfe8 {[%clk 00:17:19]} {[%emt
00:01:08]} 21. Be3 {[%clk 00:18:10]} {[%emt 00:00:02]} Nf6 {[%clk 00:15:31]}
{[%emt 00:01:53]} 22. Bg5 {[%clk 00:16:58]} {[%emt 00:01:17]} Nd5 {[%clk
00:14:54]} {[%emt 00:00:42]} 23. Qh5 {[%clk 00:16:03]} {[%emt 00:00:59]} e4
{[%clk 00:14:01]} {[%emt 00:00:58]} 24. Nc2 {[%clk 00:14:57]} {[%emt 00:01:11]}
c3 {[%clk 00:13:59]} {[%emt 00:00:08]} 25. bxc3 {[%clk 00:10:36]} {[%emt
00:04:25]} Nxc3 {[%clk 00:13:59]} {[%emt 00:00:05]} 26. Bf4 {[%clk 00:07:58]}
{[%emt 00:02:43]} Qe7 {[%clk 00:11:40]} {[%emt 00:02:24]} 27. Re1 {[%clk
00:07:18]} {[%emt 00:00:45]} b3 {[%clk 00:08:12]} {[%emt 00:03:33]} 28. Nd4
{[%clk 00:05:51]} {[%emt 00:01:33]} b2 {[%clk 00:08:16]} {[%emt 00:00:02]} 29.
Nf5 {[%clk 00:05:16]} {[%emt 00:00:39]} Qf6 {[%clk 00:08:18]} {[%emt 00:00:03]}
30. Nh6+ {[%clk 00:03:26]} {[%emt 00:01:55]} Kxg7 {[%clk 00:08:21]} {[%emt
00:00:02]} 31. Ra5 {[%clk 00:00:14]} {[%emt 00:03:17]} Be2 {[%clk 00:02:56]}
{[%emt 00:05:31]} 32. Nf5+ {[%clk 00:00:08]} {[%emt 00:00:11]} Kh8 {[%clk
00:02:03]} {[%emt 00:00:58]} 33. Bg5 {[%clk 00:00:13]} Qg6 {[%clk 00:01:42]}
{[%emt 00:00:26]} 34. Qxg6 {[%clk 00:00:15]} {[%emt 00:00:03]} hxg6 {[%clk
00:01:39]} {[%emt 00:00:05]} 35. Bf6+ {[%clk 00:00:16]} {[%emt 00:00:04]} Kh7
{[%clk 00:01:33]} {[%emt 00:00:11]} 36. Rxa8 {[%clk 00:00:19]} {[%emt
00:00:02]} Rxa8 {[%clk 00:01:24]} {[%emt 00:00:14]} 37. Bxc3 {[%clk 00:00:23]}
{[%emt 00:00:02]} gxf5 {[%clk 00:00:28]} {[%emt 00:01:01]} 38. Bxb2 {[%clk
00:00:27]} Bc4 {[%clk 00:00:16]} {[%emt 00:00:16]} 39. Rc1 {[%clk 00:00:31]}
{[%emt 00:00:02]} Bd5 {[%clk 00:00:19]} {[%emt 00:00:01]} 40. Bd4 {[%clk
00:00:34]} {[%emt 00:00:01]} Ra4 {[%clk 00:00:10]} {[%emt 00:00:15]} 41. Be3
{[%clk 00:00:38]} Kg6 {[%clk 00:00:11]} {[%emt 00:00:03]} 42. h4 {[%clk
00:00:42]} {[%emt 00:00:01]} Ra2 {[%clk 00:00:08]} {[%emt 00:00:08]} 43. Bf1
{[%clk 00:00:45]} {[%emt 00:00:02]} Ra8 {[%clk 00:00:08]} {[%emt 00:00:06]} 44.
Bc4 {[%clk 00:00:44]} {[%emt 00:00:05]} Ra4 {[%clk 00:00:08]} {[%emt 00:00:05]}
45. Be2 {[%clk 00:00:39]} {[%emt 00:00:10]} Ra2 {[%clk 00:00:08]} {[%emt
00:00:05]} 46. Kf1 {[%clk 00:00:43]} f6 {[%clk 00:00:00]} {[%emt 00:00:08]} 47.
Ke1 {[%emt 00:00:01]} 1-0

[Event "New Zealand Rapid Championship"]
[Site "Wellington"]
[Date "2023.01.11"]
[Round "4.6"]
[White "Van Riemsdijk, Herman C."]
[Black "Suggate, Romero"]
[Result "1-0"]
[TimeControl "25+5"]
[WhiteTitle "IM"]
[WhiteFideId "2100053"]
[BlackFideId "4313534"]
[WhiteElo "2370"]
[BlackElo "1806"]

1. e4 {[%clk 00:25:08]} {[%emt 00:08:02]} c5 {[%clk 00:25:09]} 2. Nf3 {[%clk
00:25:04]} {[%emt 00:00:10]} Nf6 {[%clk 00:25:09]} {[%emt 00:00:05]} 3. Nc3
{[%clk 00:24:57]} {[%emt 00:00:13]} d5 {[%clk 00:25:12]} {[%emt 00:00:02]} 4.
exd5 {[%clk 00:24:54]} {[%emt 00:00:07]} Nxd5 {[%clk 00:25:14]} {[%emt
00:00:02]} 5. Bc4 {[%clk 00:24:33]} {[%emt 00:00:26]} Nb6 {[%clk 00:25:11]}
{[%emt 00:00:08]} 6. Bb5+ {[%clk 00:24:25]} {[%emt 00:00:13]} Bd7 {[%clk
00:25:08]} {[%emt 00:00:09]} 7. Bxd7+ {[%clk 00:24:12]} {[%emt 00:00:17]} Qxd7
{[%clk 00:25:07]} {[%emt 00:00:06]} 8. O-O {[%clk 00:24:10]} {[%emt 00:00:07]}
Nc6 {[%clk 00:24:49]} {[%emt 00:00:23]} 9. d3 {[%clk 00:24:06]} {[%emt
00:00:08]} e6 {[%clk 00:23:44]} {[%emt 00:01:11]} 10. Bf4 {[%clk 00:23:48]}
{[%emt 00:00:23]} Be7 {[%clk 00:23:04]} {[%emt 00:00:45]} 11. Nb5 {[%clk
00:23:08]} {[%emt 00:00:45]} O-O {[%clk 00:21:12]} {[%emt 00:01:57]} 12. Re1
{[%clk 00:22:50]} {[%emt 00:00:24]} a6 {[%clk 00:20:56]} {[%emt 00:00:21]} 13.
Nc3 {[%clk 00:22:47]} {[%emt 00:00:08]} Nd5 {[%clk 00:20:11]} {[%emt 00:00:50]}
14. Nxd5 {[%clk 00:22:30]} {[%emt 00:00:22]} Qxd5 {[%clk 00:20:14]} {[%emt
00:00:02]} 15. Qe2 {[%clk 00:21:26]} {[%emt 00:01:08]} Bf6 {[%clk 00:19:37]}
{[%emt 00:00:43]} 16. c3 {[%clk 00:21:21]} {[%emt 00:00:09]} Rfd8 {[%clk
00:18:02]} {[%emt 00:01:40]} 17. Qe3 {[%clk 00:20:55]} {[%emt 00:00:31]} Rd7
{[%clk 00:16:43]} {[%emt 00:01:24]} 18. Red1 {[%clk 00:20:21]} {[%emt
00:00:38]} Rad8 {[%clk 00:16:23]} {[%emt 00:00:26]} 19. g4 {[%clk 00:19:18]}
{[%emt 00:01:08]} b5 {[%clk 00:12:04]} {[%emt 00:04:24]} 20. a4 {[%clk
00:19:04]} {[%emt 00:00:20]} Be7 {[%clk 00:09:57]} {[%emt 00:02:11]} 21. axb5
{[%clk 00:18:47]} {[%emt 00:00:23]} axb5 {[%emt 00:00:23]} 22. Ra6 {[%clk
00:18:30]} f6 {[%clk 00:07:49]} {[%emt 00:02:17]} 23. Rd2 {[%clk 00:17:20]}
{[%emt 00:01:14]} e5 {[%clk 00:07:48]} {[%emt 00:00:06]} 24. Bg3 {[%clk
00:17:14]} {[%emt 00:00:10]} Ra7 {[%clk 00:05:36]} {[%emt 00:02:26]} 25. c4
{[%clk 00:16:47]} {[%emt 00:00:26]} bxc4 {[%clk 00:05:10]} {[%emt 00:00:29]} 26.
dxc4 {[%clk 00:14:52]} {[%emt 00:01:59]} Qxd2 {[%clk 00:04:11]} {[%emt
00:01:04]} 27. Nxd2 {[%clk 00:14:43]} {[%emt 00:00:14]} Rxa6 {[%clk 00:04:15]}
{[%emt 00:00:01]} 28. Ne4 {[%clk 00:14:17]} {[%emt 00:00:31]} Nd4 {[%clk
00:04:17]} {[%emt 00:00:04]} 29. Nc3 {[%clk 00:14:04]} {[%emt 00:00:18]} Rb8
{[%clk 00:03:32]} {[%emt 00:00:50]} 30. Qe4 {[%clk 00:13:34]} {[%emt 00:00:34]}
Rd6 {[%clk 00:02:52]} {[%emt 00:00:46]} 31. Kg2 {[%clk 00:12:10]} {[%emt
00:01:29]} Rxb2 {[%clk 00:02:49]} {[%emt 00:00:08]} 32. g5 {[%clk 00:10:11]}
{[%emt 00:02:03]} Rc2 {[%clk 00:01:24]} {[%emt 00:01:31]} 33. Nd5 {[%clk
00:10:02]} {[%emt 00:00:14]} Re6 {[%clk 00:00:50]} {[%emt 00:00:40]} 34. gxf6
{[%clk 00:09:43]} {[%emt 00:00:23]} gxf6 {[%clk 00:00:15]} {[%emt 00:00:41]} 35.
Ne3 {[%clk 00:09:31]} {[%emt 00:00:20]} Ra2 {[%clk 00:00:10]} {[%emt 00:00:07]}
36. h4 {[%clk 00:08:43]} {[%emt 00:00:52]} Bf8 {[%clk 00:00:08]} {[%emt
00:00:09]} 37. h5 {[%clk 00:08:33]} {[%emt 00:00:13]} Ra7 {[%clk 00:00:08]}
{[%emt 00:00:05]} 38. Qd5 {[%clk 00:08:21]} {[%emt 00:00:17]} Raa6 {[%emt
00:00:22]} 39. Bh4 {[%emt 00:00:13]} Kf7 {[%emt 00:00:03]} 40. Qe4 {[%emt
00:00:20]} Kg7 {[%emt 00:00:09]} 41. Ng4 {[%emt 00:00:14]} f5 {[%emt 00:00:06]}
42. Qb7+ Kg8 {[%emt 00:00:14]} 43. Nxe5 {[%emt 00:00:02]} 1-0

[Event "New Zealand Rapid Championship"]
[Site "Wellington"]
[Date "2023.01.11"]
[Round "4.7"]
[White "Ha, Timothy Huy Minh"]
[Black "Parfene, Horatiu"]
[Result "0-1"]
[TimeControl "25+5"]
[WhiteFideId "12417246"]
[BlackFideId "1208438"]
[WhiteElo "1549"]
[BlackElo "2085"]

1. d4 {[%clk 00:25:06]} Nf6 {[%clk 00:25:08]} {[%emt 00:00:03]} 2. Nf3 {[%clk
00:25:09]} {[%emt 00:00:03]} g6 {[%clk 00:25:09]} {[%emt 00:00:03]} 3. g3
{[%clk 00:25:13]} {[%emt 00:00:01]} Bg7 {[%clk 00:25:11]} {[%emt 00:00:04]} 4.
Bg2 {[%clk 00:25:16]} {[%emt 00:00:01]} d6 {[%clk 00:25:12]} {[%emt 00:00:05]}
5. O-O {[%clk 00:25:14]} {[%emt 00:00:07]} Nbd7 {[%clk 00:25:06]} {[%emt
00:00:10]} 6. c4 {[%clk 00:25:15]} {[%emt 00:00:04]} O-O {[%clk 00:24:46]}
{[%emt 00:00:26]} 7. Nc3 {[%clk 00:25:18]} {[%emt 00:00:01]} c6 {[%clk
00:24:41]} {[%emt 00:00:09]} 8. e4 {[%clk 00:25:13]} {[%emt 00:00:10]} e5
{[%clk 00:24:40]} {[%emt 00:00:07]} 9. Be3 {[%clk 00:24:48]} {[%emt 00:00:29]}
Qa5 {[%clk 00:22:13]} {[%emt 00:02:32]} 10. a3 {[%clk 00:23:27]} {[%emt
00:01:26]} Ng4 {[%clk 00:21:55]} {[%emt 00:00:22]} 11. b4 {[%clk 00:23:11]}
{[%emt 00:00:22]} Nxe3 {[%clk 00:20:49]} {[%emt 00:01:11]} 12. fxe3 {[%clk
00:22:54]} {[%emt 00:00:22]} Qc7 {[%clk 00:19:04]} {[%emt 00:01:50]} 13. Rc1
{[%clk 00:22:52]} {[%emt 00:00:05]} a6 {[%clk 00:18:32]} {[%emt 00:00:39]} 14.
Bh3 {[%clk 00:22:17]} {[%emt 00:00:39]} Nf6 {[%clk 00:17:46]} {[%emt 00:00:52]}
15. Bg2 {[%clk 00:22:04]} {[%emt 00:00:17]} Ng4 {[%clk 00:16:20]} {[%emt
00:01:32]} 16. Qd3 {[%clk 00:22:07]} Bh6 {[%clk 00:16:12]} {[%emt 00:00:14]} 17.
Rce1 {[%clk 00:22:10]} {[%emt 00:00:01]} Qe7 {[%clk 00:15:00]} {[%emt
00:01:17]} 18. d5 {[%clk 00:21:43]} {[%emt 00:00:32]} f5 {[%clk 00:14:24]}
{[%emt 00:00:42]} 19. exf5 {[%clk 00:20:07]} {[%emt 00:01:41]} gxf5 {[%clk
00:14:21]} {[%emt 00:00:07]} 20. Nh4 {[%clk 00:19:55]} {[%emt 00:00:17]} Qg5
{[%clk 00:13:17]} {[%emt 00:01:10]} 21. Nf3 {[%clk 00:18:01]} {[%emt 00:01:59]}
Qg7 {[%clk 00:12:52]} {[%emt 00:00:30]} 22. Nh4 {[%clk 00:17:02]} {[%emt
00:01:04]} e4 {[%clk 00:12:23]} {[%emt 00:00:34]} 23. Qd2 {[%clk 00:17:05]}
{[%emt 00:00:02]} Bg5 {[%clk 00:12:12]} {[%emt 00:00:15]} 24. h3 {[%clk
00:15:31]} {[%emt 00:01:39]} Ne5 {[%clk 00:11:40]} {[%emt 00:00:41]} 25. dxc6
{[%clk 00:15:04]} {[%emt 00:00:28]} Bxh4 {[%clk 00:10:52]} {[%emt 00:00:53]} 26.
Qd5+ {[%clk 00:14:25]} {[%emt 00:00:43]} Kh8 {[%clk 00:10:38]} {[%emt
00:00:20]} 27. Nxe4 {[%clk 00:13:11]} {[%emt 00:02:00]} fxe4 {[%clk 00:09:21]}
{[%emt 00:00:41]} 28. Rxf8+ {[%clk 00:13:14]} {[%emt 00:00:13]} Qxf8 {[%clk
00:09:25]} 29. Rf1 {[%clk 00:12:06]} {[%emt 00:01:03]} Qg7 {[%clk 00:08:44]}
{[%emt 00:00:46]} 30. Qxe4 {[%clk 00:09:48]} {[%emt 00:02:22]} Qxg3 {[%clk
00:07:18]} {[%emt 00:01:32]} 31. cxb7 {[%clk 00:08:00]} {[%emt 00:01:53]} Bxb7
{[%clk 00:07:08]} {[%emt 00:00:15]} 32. Qxb7 {[%clk 00:07:36]} {[%emt
00:00:28]} Rg8 {[%clk 00:06:49]} {[%emt 00:00:24]} 33. Kh1 {[%clk 00:07:22]}
{[%emt 00:00:19]} Nd3 {[%clk 00:05:53]} {[%emt 00:01:02]} 34. Qf3 {[%clk
00:06:04]} {[%emt 00:01:22]} Nf2+ {[%clk 00:05:46]} {[%emt 00:00:12]} 35. Kg1
{[%clk 00:05:23]} {[%emt 00:00:45]} Qxf3 {[%clk 00:05:48]} {[%emt 00:00:04]}
0-1

[Event "New Zealand Rapid Championship"]
[Site "Wellington"]
[Date "2023.01.11"]
[Round "4.8"]
[White "Hague, Ben"]
[Black "Burns, Christopher J"]
[Result "1-0"]
[TimeControl "25+5"]
[WhiteTitle "FM"]
[WhiteFideId "405647"]
[BlackFideId "4300920"]
[WhiteElo "2410"]
[BlackElo "2031"]

1. d4 {[%clk 00:25:08]} d5 {[%clk 00:25:07]} {[%emt 00:00:03]} 2. c4 {[%clk
00:25:11]} {[%emt 00:00:03]} dxc4 {[%clk 00:25:11]} 3. Nf3 {[%clk 00:25:13]}
{[%emt 00:00:03]} Nf6 {[%clk 00:25:11]} {[%emt 00:00:05]} 4. Nc3 {[%clk
00:25:07]} {[%emt 00:00:11]} a6 {[%clk 00:25:02]} {[%emt 00:00:14]} 5. e4
{[%clk 00:24:56]} {[%emt 00:00:15]} b5 {[%clk 00:24:49]} {[%emt 00:00:18]} 6.
e5 {[%clk 00:24:50]} {[%emt 00:00:11]} Nd5 {[%clk 00:24:52]} {[%emt 00:00:03]}
7. Be2 {[%clk 00:24:50]} {[%emt 00:00:05]} h6 {[%clk 00:24:25]} {[%emt
00:00:32]} 8. O-O {[%clk 00:24:45]} {[%emt 00:00:10]} Bf5 {[%emt 00:00:54]} 9.
Nh4 {[%clk 00:24:01]} Bh7 {[%clk 00:24:25]} {[%emt 00:00:04]} 10. e6 {[%clk
00:23:48]} {[%emt 00:00:19]} fxe6 {[%clk 00:21:46]} {[%emt 00:02:45]} 11. Bh5+
{[%clk 00:23:27]} {[%emt 00:00:26]} Kd7 {[%clk 00:21:45]} {[%emt 00:00:06]} 12.
Re1 {[%clk 00:23:07]} {[%emt 00:00:24]} g5 {[%clk 00:19:15]} {[%emt 00:02:35]}
13. Qg4 {[%clk 00:20:05]} {[%emt 00:03:08]} c6 {[%clk 00:18:06]} {[%emt
00:01:15]} 14. Qxe6+ {[%clk 00:19:57]} {[%emt 00:00:12]} Kc7 {[%clk 00:18:10]}
{[%emt 00:00:01]} 15. Qe5+ {[%clk 00:19:54]} {[%emt 00:00:08]} Kb6 {[%clk
00:16:21]} {[%emt 00:01:52]} 16. Nxd5+ {[%clk 00:19:26]} {[%emt 00:00:35]} cxd5
{[%clk 00:15:06]} {[%emt 00:01:20]} 17. Qxh8 {[%clk 00:19:24]} {[%emt
00:00:07]} Be4 {[%clk 00:14:59]} {[%emt 00:00:08]} 18. Ng6 {[%clk 00:18:53]}
{[%emt 00:00:39]} Nc6 {[%clk 00:14:43]} {[%emt 00:00:21]} 19. Nxf8 {[%clk
00:18:42]} {[%emt 00:00:16]} Qxf8 {[%clk 00:14:46]} {[%emt 00:00:03]} 20. Qxf8
{[%clk 00:18:45]} {[%emt 00:00:02]} Rxf8 {[%clk 00:14:50]} {[%emt 00:00:01]} 21.
Be3 {[%clk 00:18:47]} {[%emt 00:00:02]} Nb4 {[%clk 00:14:07]} {[%emt 00:00:49]}
22. Re2 {[%clk 00:17:47]} {[%emt 00:01:04]} Bd3 {[%clk 00:13:25]} {[%emt
00:00:47]} 23. Rd2 {[%clk 00:17:41]} {[%emt 00:00:11]} a5 {[%clk 00:12:59]}
{[%emt 00:00:34]} 24. a3 {[%clk 00:17:08]} {[%emt 00:00:39]} Nc6 {[%clk
00:13:03]} 25. Bf3 {[%clk 00:16:55]} {[%emt 00:00:15]} e5 {[%clk 00:12:38]}
{[%emt 00:00:31]} 26. dxe5+ {[%clk 00:12:08]} {[%emt 00:04:52]} d4 {[%clk
00:12:42]} {[%emt 00:00:02]} 27. Bxc6 {[%clk 00:12:07]} {[%emt 00:00:05]} dxe3
{[%clk 00:12:45]} {[%emt 00:00:07]} 28. Rxd3 {[%clk 00:12:10]} cxd3 {[%clk
00:12:35]} {[%emt 00:00:14]} 29. Be4 {[%clk 00:11:37]} {[%emt 00:00:36]} exf2+
{[%clk 00:12:02]} {[%emt 00:00:45]} 30. Kf1 {[%clk 00:11:38]} g4 {[%clk
00:10:16]} {[%emt 00:01:49]} 31. Bxd3 {[%clk 00:11:31]} {[%emt 00:00:15]} h5
{[%clk 00:10:18]} 32. g3 {[%clk 00:11:02]} {[%emt 00:00:32]} Rf3 {[%clk
00:09:17]} {[%emt 00:01:07]} 33. Rd1 {[%clk 00:11:01]} {[%emt 00:00:06]} Kc5
{[%clk 00:08:33]} {[%emt 00:00:49]} 34. Rd2 {[%clk 00:10:22]} {[%emt 00:00:44]}
b4 {[%clk 00:08:31]} {[%emt 00:00:08]} 35. axb4+ {[%clk 00:10:21]} {[%emt
00:00:05]} Kxb4 {[%clk 00:07:54]} {[%emt 00:00:42]} 36. Bg6 {[%clk 00:10:22]}
{[%emt 00:00:03]} h4 {[%clk 00:07:27]} {[%emt 00:00:33]} 37. e6 {[%clk
00:09:47]} {[%emt 00:00:39]} hxg3 {[%clk 00:07:22]} {[%emt 00:00:11]} 38. hxg3
{[%clk 00:09:51]} 1-0